bitfinex/quotes_SOLUSD_20220208
["timestamp","ask_amount","ask_price","bid_price","bid_amount"]
[1644361340259,0.22183458,113.59,113.57,1.33625732]
[1644361341859,4.72814262,113.58,113.57,1.33625732]
[1644361342060,0.22183458,113.59,113.53,12.71]
[1644361342264,0.25305201,113.59,113.53,12.71]
[1644361342661,11.39839166,113.6,113.51,13.2106]
[1644361342861,0.03173859,113.58,113.48,17.112]
[1644361343063,13.2137,113.57,113.48,23.112]
[1644361343265,13.24543859,113.57,113.48,17.112]
[1644361343462,19.24543859,113.57,113.48,17.112]
[1644361344661,23.64943859,113.57,113.48,12.71]
[1644361344876,23.64943859,113.57,113.49,13.2128]
[1644361345562,23.89943859,113.57,113.49,13.2128]
[1644361345962,23.89943859,113.57,113.49,13.4628]
[1644361346162,19.49543859,113.57,113.49,14.78486414]
[1644361346663,19.49543859,113.57,113.49,13.4628]
[1644361347264,23.89943859,113.57,113.49,13.4628]
[1644361347466,23.64943859,113.57,113.49,13.2128]
[1644361348566,19.24543859,113.57,113.49,17.6168]
[1644361348867,20.73877824,113.57,113.49,17.6168]
[1644361349770,1.24333965,113.56,113.49,17.6168]
[1644361350669,1.27507824,113.57,113.49,30.5768]
[1644361351067,1.27507824,113.57,113.49,30.3268]
[1644361351669,7.27507824,113.57,113.49,30.3268]
[1644361351869,5.67907824,113.57,113.49,25.9228]
[1644361352071,5.92907824,113.57,113.49,25.9228]
[1644361352468,1.52507824,113.57,113.5,4.404]
[1644361352672,1.52507824,113.57,113.5,17.6167]
[1644361352869,7.52507824,113.57,113.5,17.6167]
[1644361353074,1.52507824,113.57,113.5,17.6167]
[1644361353675,1.27507824,113.57,113.5,17.6167]
[1644361354772,1.27507824,113.57,113.5,13.2127]
[1644361354973,5.92707824,113.57,113.5,13.2127]
[1644361355994,1.52507824,113.57,113.5,13.2127]
[1644361357498,1.52507824,113.57,113.5,13.4627]
[1644361358197,5.92707824,113.57,113.5,13.2127]
[1644361358600,5.92707824,113.57,113.5,13.4627]
[1644361359200,1.27507824,113.57,113.51,1.32206414]
[1644361359401,1.27507824,113.57,113.51,14.53316414]
[1644361359604,1.27507824,113.57,113.51,13.4611]
[1644361359801,1.27507824,113.57,113.51,13.2111]
[1644361360000,1.24333965,113.56,113.51,13.2111]
[1644361360503,1.49333965,113.56,113.51,13.2111]
[1644361361701,1.49333965,113.56,113.5,17.6149]
[1644361361902,12.76033965,113.56,113.5,17.6149]
[1644361362404,5.64733965,113.55,113.5,4.402]
[1644361362604,11.64733965,113.55,113.5,4.402]
[1644361362800,4.404,113.54,113.5,0.0001]
[1644361363209,22.99063859,113.53,113.5,0.0001]
[1644361363401,9.16388121,113.52,113.42,56.7714]
[1644361363601,10.75988121,113.52,113.43,4.406]
[1644361364005,4.75988121,113.52,113.43,4.406]
[1644361364202,10.75988121,113.52,113.43,4.406]
[1644361364802,23.97978121,113.52,113.44,13.2199]
[1644361365002,23.97978121,113.52,113.45,4.406]
[1644361365205,28.38478121,113.52,113.45,4.406]
[1644361366205,28.63478121,113.52,113.45,4.406]
[1644361366403,27.88478121,113.52,113.45,17.6248]
[1644361366603,4.405,113.51,113.45,17.6248]
[1644361367204,13.25165804,113.52,113.45,17.6248]
[1644361367507,0.03175804,113.52,113.47,13.2153]
[1644361367704,0.03175804,113.53,113.47,13.2153]
[1644361367904,17.65365804,113.54,113.47,14.53736414]
[1644361368104,13.24865804,113.54,113.47,13.2153]
[1644361368407,1.24333965,113.53,113.47,13.2153]
[1644361368604,1.27509769,113.53,113.47,13.2153]
[1644361368804,1.52509769,113.53,113.47,13.2153]
[1644361369206,13.84809769,113.53,113.47,13.2153]
[1644361369806,27.06499769,113.53,113.47,13.2153]
[1644361370007,27.03323965,113.53,113.47,13.2153]
[1644361373207,33.03323965,113.53,113.47,13.2153]
[1644361373508,27.03323965,113.53,113.47,13.2153]
[1644361374011,27.03323965,113.53,113.45,4.405]
[1644361374210,4.43675804,113.52,113.45,4.405]
[1644361374410,13.2209,113.5,113.45,4.405]
[1644361374612,4.406,113.49,113.45,4.405]
[1644361374817,7.24333965,113.5,113.42,1.31877995]
[1644361375010,0.03175804,113.52,113.43,12.71]
[1644361375212,4.43775804,113.52,113.46,1.31877995]
[1644361375410,4.406,113.52,113.43,62.7675]
[1644361375609,0.03175804,113.51,113.44,0.25]
[1644361375810,0.03175804,113.51,113.43,62.7675]
[1644361376011,0.03175804,113.51,113.43,56.7675]
[1644361376412,0.03175804,113.51,113.45,13.2187]
[1644361376711,14.71143965,113.52,113.45,13.2187]
[1644361376911,13.24985804,113.52,113.45,13.2187]
[1644361377110,19.24985804,113.52,113.45,13.2187]
[1644361377311,13.24985804,113.52,113.45,13.4687]
[1644361377710,19.24985804,113.52,113.45,13.4687]
[1644361377912,13.24985804,113.52,113.45,13.4687]
[1644361378112,19.49985804,113.52,113.45,13.4687]
[1644361378311,13.49985804,113.52,113.45,13.4687]
[1644361378913,19.49985804,113.52,113.45,13.4687]
[1644361379114,13.49985804,113.52,113.45,13.4687]
[1644361379315,4.405,113.51,113.45,13.2187]
[1644361379518,13.2203,113.5,113.44,17.6253]
[1644361379715,13.2203,113.5,113.44,13.2203]
[1644361380218,4.406,113.49,113.39,4.406]
[1644361380418,27.3437,113.49,113.37,62.42388207]
[1644361380616,33.3437,113.49,113.37,62.42388207]
[1644361380816,33.3437,113.49,113.37,61.1989]
[1644361381015,34.58703965,113.49,113.37,61.1989]
[1644361381218,34.58703965,113.49,113.37,67.4489]
[1644361381817,13.2226,113.48,113.4,13.225]
[1644361382017,22.9376,113.48,113.4,13.225]
[1644361382217,28.9376,113.48,113.4,13.225]
[1644361382621,4.407,113.47,113.36,2.54376202]
[1644361382820,28.3406,113.47,113.36,13.93498207]
[1644361383028,13.2279,113.44,113.35,112.5]
[1644361383220,4.409,113.43,113.36,13.2293]
[1644361383619,10.409,113.43,113.35,112.5]
[1644361383823,6.0,113.43,113.35,112.5]
[1644361384022,6.0,113.43,113.35,112.75]
[1644361384224,0.25,113.43,113.35,112.75]
[1644361384623,17.713,113.44,113.35,112.75]
[1644361384825,13.2298,113.42,113.35,125.73]
[1644361385222,19.2298,113.42,113.35,125.73]
[1644361385723,19.2298,113.42,113.33,13.2322]
[1644361385923,19.2298,113.42,113.31,55.03398839]
[1644361386122,22.6904,113.41,113.31,55.03398839]
[1644361386325,13.2349,113.38,113.31,55.03398839]
[1644361386522,13.2349,113.38,113.31,30.80318839]
[1644361386725,19.2349,113.38,113.31,4.41]
[1644361387722,19.2349,113.38,113.3,112.5]
[1644361387723,4.41,113.37,113.3,112.5]
[1644361387923,13.2377,113.36,113.3,112.5]
[1644361388123,19.2377,113.36,113.3,112.5]
[1644361388323,6.0,113.36,113.3,112.75]
[1644361388525,44.1231,113.4,113.3,117.16]
[1644361388722,50.1231,113.4,113.3,116.91]
[1644361388928,50.3731,113.4,113.3,116.91]
[1644361389125,13.2352,113.38,113.3,116.91]
[1644361389325,13.2352,113.38,113.3,112.5]
[1644361389527,19.2352,113.38,113.3,112.5]
[1644361390527,19.2352,113.38,113.29,4.434]
[1644361390728,19.2352,113.38,113.29,0.024]
[1644361390930,19.2352,113.38,113.28,4.434]
[1644361391127,19.2352,113.38,113.29,0.024]
[1644361392629,19.4852,113.38,113.29,0.024]
[1644361395134,19.4852,113.38,113.29,13.2605]
[1644361396638,23.8952,113.38,113.29,13.2605]
[1644361400062,19.4852,113.38,113.29,13.2605]
[1644361402662,4.41,113.37,113.29,13.2605]
[1644361402863,13.238,113.36,113.29,13.2605]
[1644361403063,19.238,113.36,113.29,13.2605]
[1644361403665,19.238,113.36,113.29,0.024]
[1644361403863,19.238,113.36,113.28,0.024]
[1644361405171,33.95575549,113.36,113.28,0.024]
[1644361405368,33.95575549,113.36,113.25,4.41]
[1644361405369,4.412,113.35,113.27,0.024]
[1644361405670,4.412,113.35,113.28,0.024]
[1644361405671,13.2435,113.33,113.28,0.024]
[1644361405968,4.412,113.32,113.28,0.024]
[1644361406169,34.6289,113.32,113.23,0.024]
[1644361406369,30.2169,113.32,113.23,4.438]
[1644361406670,30.2169,113.32,113.24,0.024]
[1644361406970,13.2444,113.31,113.24,0.024]
[1644361407170,19.2444,113.31,113.24,0.024]
[1644361409175,28.3134,113.31,113.24,0.024]
[1644361410177,4.414,113.3,113.24,0.024]
[1644361410374,13.2481,113.29,113.24,0.024]
[1644361410576,4.414,113.28,113.23,4.438]
[1644361410773,13.862,113.28,113.23,4.438]
[1644361410975,19.862,113.28,113.23,4.414]
[1644361411177,19.862,113.28,113.2,0.024]
[1644361411579,13.2486,113.27,113.2,0.024]
[1644361411778,4.415,113.26,113.2,0.024]
[1644361411984,4.415,113.26,113.15,0.024]
[1644361412184,12.52275549,113.26,113.15,0.024]
[1644361412381,24.4497,113.25,113.15,13.2769]
[1644361412582,6.0,113.25,113.16,5.7306915]
[1644361412780,19.2546,113.25,113.17,0.024]
[1644361412979,19.2546,113.25,113.18,4.416]
[1644361413179,19.2546,113.25,113.18,0.024]
[1644361413379,19.2546,113.25,113.17,0.024]
[1644361414180,19.5046,113.25,113.17,0.024]
[1644361414382,19.2546,113.25,113.17,0.024]
[1644361414579,19.2546,113.25,113.17,4.44]
[1644361415779,23.9206,113.25,113.17,0.024]
[1644361416781,19.5046,113.25,113.17,0.024]
[1644361418385,19.5046,113.25,113.17,13.2749]
[1644361418785,19.5046,113.25,113.18,0.3811556]
[1644361418994,19.5046,113.25,113.18,0.4051556]
[1644361420088,13.2546,113.25,113.18,0.4051556]
[1644361420290,48.588,113.27,113.18,14.9692471]
[1644361420291,13.2485,113.27,113.18,14.9692471]
[1644361420487,27.4016,113.3,113.18,14.9692471]
[1644361420488,4.415,113.29,113.19,4.415]
[1644361420687,52.4825,113.32,113.2,0.024]
[1644361421291,68.703,113.35,113.22,88.45]
[1644361421492,24.563,113.35,113.23,125.234]
[1644361421693,24.563,113.35,113.24,4.413]
[1644361421891,24.563,113.35,113.24,4.437]
[1644361422091,4.413,113.34,113.25,0.024]
[1644361422292,17.6536,113.34,113.26,13.2394]
[1644361422492,17.6536,113.34,113.26,0.024]
[1644361422692,24.8241,113.33,113.25,0.024]
[1644361422893,4.413,113.32,113.25,0.024]
[1644361423092,10.413,113.32,113.25,0.024]
[1644361423496,4.413,113.32,113.25,0.024]
[1644361423693,13.2432,113.31,113.25,13.2665]
[1644361424295,13.2432,113.31,113.24,0.3811556]
[1644361424498,19.2432,113.31,113.24,0.4051556]
[1644361425101,27.809,113.3,113.24,0.4051556]
[1644361425300,13.2475,113.29,113.24,0.3811556]
[1644361425700,19.2475,113.29,113.22,0.3811556]
[1644361425902,19.2475,113.29,113.22,0.4051556]
[1644361427702,19.4975,113.29,113.22,0.4051556]
[1644361427901,19.4975,113.29,113.22,0.3811556]
[1644361428106,19.4975,113.29,113.22,0.4051556]
[1644361428305,4.414,113.28,113.22,0.4051556]
[1644361428506,17.6611,113.28,113.22,0.4051556]
[1644361428705,23.6611,113.28,113.22,0.4051556]
[1644361429107,17.6611,113.28,113.22,0.4051556]
[1644361430414,13.2452,113.29,113.22,1.7198471]
[1644361430613,41.85233965,113.36,113.23,4.414]
[1644361430820,4.414,113.36,113.23,28.4685]
[1644361431019,4.413,113.37,113.24,14.0486915]
[1644361431220,4.413,113.37,113.25,23.0638]
[1644361431422,4.413,113.37,113.26,12.734]
[1644361431621,10.413,113.37,113.26,18.4606915]
[1644361431819,10.413,113.37,113.26,18.7106915]
[1644361432219,23.0421,113.36,113.26,23.396]
[1644361432420,23.0421,113.36,113.26,17.396]
[1644361432621,23.0421,113.36,113.26,30.6354]
[1644361432819,4.412,113.35,113.26,30.6354]
[1644361433225,4.412,113.35,113.26,36.6354]
[1644361433436,4.412,113.35,113.26,30.6354]
[1644361434022,23.0421,113.36,113.26,26.2234]
[1644361434523,29.0421,113.36,113.26,26.2234]
[1644361434721,13.2398,113.35,113.26,26.2234]
[1644361434924,17.6518,113.35,113.26,26.2234]
[1644361435120,23.6518,113.35,113.26,26.2234]
[1644361435321,23.6518,113.35,113.27,0.3811556]
[1644361435521,19.2398,113.35,113.28,13.239]
[1644361435725,19.2398,113.35,113.28,13.263]
[1644361435924,23.6518,113.35,113.28,13.263]
[1644361438624,23.6518,113.35,113.29,0.3811556]
[1644361438825,19.2398,113.35,113.29,0.3811556]
[1644361439726,23.9018,113.35,113.29,0.3811556]
[1644361440729,19.4898,113.35,113.29,0.3811556]
[1644361440928,6.25,113.35,113.29,13.6189556]
[1644361441130,0.25,113.35,113.29,13.6189556]
[1644361441428,30.0437,113.38,113.29,13.6189556]
[1644361441627,4.41,113.37,113.29,13.6189556]
[1644361442426,17.6469,113.37,113.29,13.6189556]
[1644361442628,13.2369,113.37,113.29,13.6189556]
[1644361443028,19.2369,113.37,113.29,13.6189556]
[1644361443428,19.4869,113.37,113.29,13.6189556]
[1644361443631,23.8969,113.37,113.29,13.6189556]
[1644361443829,19.4869,113.37,113.29,13.6189556]
[1644361444931,23.8969,113.37,113.29,13.6189556]
[1644361446131,23.8969,113.37,113.29,0.3811556]
[1644361446331,23.3807,113.36,113.29,0.3811556]
[1644361446530,13.2392,113.35,113.29,0.3811556]
[1644361446732,17.6512,113.35,113.29,0.3811556]
[1644361446933,19.2392,113.35,113.29,0.3811556]
[1644361447131,6.0,113.35,113.29,13.6193556]
[1644361447330,72.70723965,113.39,113.29,13.6193556]
[1644361447331,71.4639,113.39,113.29,13.6193556]
[1644361447531,13.2368,113.37,113.29,48.0822556]
[1644361448234,19.2368,113.37,113.29,48.0822556]
[1644361448734,19.4868,113.37,113.29,48.0822556]
[1644361449232,13.4868,113.37,113.29,48.0822556]
[1644361449434,0.25,113.37,113.29,52.7422556]
[1644361449833,43.3131,113.38,113.29,52.7422556]
[1644361450436,37.3131,113.38,113.3,12.71]
[1644361450635,37.0631,113.38,113.32,13.2347]
[1644361450840,43.0631,113.38,113.32,13.2347]
[1644361451039,14.47733965,113.4,113.32,13.2347]
[1644361451239,4.59923418,113.42,113.32,42.1963915]
[1644361451240,6.0,113.39,113.32,42.1963915]
[1644361451436,4.59923418,113.42,113.32,42.1963915]
[1644361451635,1.24333965,113.43,113.32,46.6063915]
[1644361451835,1.24333965,113.43,113.33,23.588]
[1644361452035,49.95203965,113.44,113.36,13.2292]
[1644361452237,13.2297,113.43,113.36,25.1732]
[1644361452437,54.36103965,113.44,113.36,25.1732]
[1644361452636,53.1177,113.44,113.36,25.1732]
[1644361453638,59.1177,113.44,113.36,25.1732]
[1644361453941,67.9372,113.44,113.36,25.1732]
[1644361454139,1.24333965,113.45,113.36,25.1732]
[1644361454342,4.408,113.44,113.36,25.1732]
[1644361454539,4.408,113.44,113.36,37.8832]
[1644361454743,4.408,113.44,113.37,0.3811556]
[1644361454944,6.0,113.45,113.37,13.6098556]
[1644361455144,4.408,113.44,113.37,13.6098556]
[1644361455547,6.0,113.45,113.37,13.6098556]
[1644361455747,7.24333965,113.46,113.37,13.6098556]
[1644361455949,1.24333965,113.46,113.37,13.6098556]
[1644361456146,6.0,113.46,113.37,13.6098556]
[1644361456546,105.47611549,113.47,113.37,13.6098556]
[1644361456749,13.2286,113.44,113.37,13.6098556]
[1644361457146,13.2286,113.44,113.37,13.8598556]
[1644361457346,13.2286,113.44,113.37,13.6098556]
[1644361457347,19.2286,113.44,113.37,13.6098556]
[1644361457548,13.2286,113.44,113.37,13.6098556]
[1644361457748,13.2286,113.44,113.37,13.8598556]
[1644361458154,13.4786,113.44,113.37,13.8598556]
[1644361459254,4.408,113.43,113.37,0.3811556]
[1644361459550,4.408,113.43,113.33,67.6613]
[1644361459551,13.2316,113.42,113.33,67.6613]
[1644361459751,13.2316,113.42,113.35,0.3811556]
[1644361459950,6.0,113.42,113.35,0.3811556]
[1644361460151,29.5418,113.43,113.35,0.3811556]
[1644361460352,23.5418,113.43,113.35,4.7901556]
[1644361460953,13.23,113.42,113.35,4.7901556]
[1644361461160,23.639,113.42,113.35,0.3811556]
[1644361461753,4.409,113.41,113.35,0.3811556]
[1644361461952,13.2343,113.4,113.35,0.3811556]
[1644361462153,23.6443,113.4,113.35,0.3811556]
[1644361462354,19.2343,113.4,113.35,0.3811556]
[1644361462957,19.2343,113.4,113.34,13.6127556]
[1644361463159,13.2343,113.4,113.34,13.6127556]
[1644361465081,19.2343,113.4,113.34,0.3811556]
[1644361465484,13.2343,113.4,113.34,0.3811556]
[1644361465984,13.2343,113.4,113.33,0.3811556]
[1644361466186,13.2343,113.4,113.34,13.2328]
[1644361466483,13.2309,113.41,113.34,14.5474915]
[1644361466683,13.2309,113.41,113.34,13.4828]
[1644361466883,13.2309,113.41,113.35,4.41]
[1644361467284,13.2309,113.41,113.35,17.6416]
[1644361467688,17.6399,113.41,113.35,13.2316]
[1644361468283,17.8899,113.41,113.35,13.2316]
[1644361468485,13.4809,113.41,113.35,13.2316]
[1644361469284,13.4809,113.41,113.36,0.3811556]
[1644361469486,17.8899,113.41,113.36,0.3811556]
[1644361469784,13.4809,113.41,113.36,0.3811556]
[1644361473386,19.4809,113.41,113.36,0.3811556]
[1644361476490,23.8899,113.41,113.36,0.3811556]
[1644361479898,19.4809,113.41,113.36,0.3811556]
[1644361484101,19.2309,113.41,113.36,0.3811556]
[1644361485204,23.6399,113.41,113.36,0.3811556]
[1644361486506,2.10775549,113.4,113.36,0.3811556]
[1644361486706,13.2352,113.39,113.36,0.3811556]
[1644361486905,4.25988121,113.38,113.36,0.3811556]
[1644361487309,4.25988121,113.38,113.33,0.3811556]
[1644361487808,4.50988121,113.38,113.33,0.3811556]
[1644361488007,10.50988121,113.38,113.33,0.3811556]
[1644361488410,14.91988121,113.38,113.33,0.3811556]
[1644361488610,10.50988121,113.38,113.33,0.3811556]
[1644361488810,13.2358,113.37,113.33,0.3811556]
[1644361489609,19.2358,113.37,113.33,0.3811556]
[1644361491237,19.4858,113.37,113.33,0.3811556]
[1644361491438,19.2358,113.37,113.33,0.3811556]
[1644361491838,19.2358,113.37,113.32,0.3811556]
[1644361492843,19.4858,113.37,113.32,0.3811556]
[1644361493243,19.4858,113.37,113.32,13.6168556]
[1644361493842,19.2358,113.37,113.32,13.6168556]
[1644361494043,13.4858,113.37,113.32,13.8668556]
[1644361494340,13.4858,113.37,113.32,13.6168556]
[1644361494741,13.4858,113.37,113.32,13.8668556]
[1644361494943,13.4858,113.37,113.32,13.6168556]
[1644361497043,13.4858,113.37,113.32,13.8668556]
[1644361497445,0.25,113.37,113.32,13.8668556]
[1644361497843,13.2341,113.38,113.32,13.8668556]
[1644361499646,13.2341,113.38,113.32,18.2768556]
[1644361500747,4.41,113.4,113.32,18.2768556]
[1644361500947,13.2329,113.39,113.32,37.3112556]
[1644361501248,13.4829,113.39,113.32,41.7212556]
[1644361501449,13.4829,113.39,113.32,37.3112556]
[1644361501748,0.25,113.39,113.32,41.7212556]
[1644361502150,13.2306,113.41,113.33,1.31419246]
[1644361502353,1.24333965,113.43,113.35,13.2298]
[1644361502550,6.0,113.43,113.35,37.0027]
[1644361502753,26.02523965,113.44,113.35,37.2527]
[1644361502951,32.02523965,113.44,113.36,0.3811556]
[1644361503150,36.43423965,113.44,113.36,0.3811556]
[1644361503852,24.87983965,113.44,113.38,13.2283]
[1644361504052,6.0,113.44,113.38,13.2283]
[1644361504254,6.0,113.44,113.38,13.4783]
[1644361504453,7.24333965,113.45,113.38,13.4783]
[1644361504651,6.0,113.45,113.38,13.4783]
[1644361505255,56.18153965,113.46,113.38,13.4783]
[1644361505655,69.40673965,113.46,113.38,13.2283]
[1644361506054,1.24333965,113.45,113.39,0.3811556]
[1644361506251,56.18153965,113.46,113.39,0.3811556]
[1644361506452,6.0,113.45,113.39,0.3811556]
[1644361506652,13.2276,113.44,113.39,0.3811556]
[1644361507855,13.4776,113.44,113.39,0.3811556]
[1644361509354,4.408,113.43,113.39,0.3811556]
[1644361509554,13.23,113.42,113.38,0.3811556]
[1644361510256,19.23,113.42,113.38,0.3811556]
[1644361510456,13.2325,113.4,113.38,0.3811556]
[1644361510653,4.25988121,113.39,113.38,0.3811556]
[1644361512156,4.50988121,113.39,113.38,0.3811556]
[1644361512356,13.2325,113.4,113.38,0.3811556]
[1644361512656,24.8831,113.42,113.37,0.3811556]
[1644361513460,1.24333965,113.45,113.37,0.3811556]
[1644361513759,10.408,113.45,113.37,10.0881556]
[1644361513960,4.408,113.45,113.37,10.0881556]
[1644361514161,10.408,113.45,113.37,10.3381556]
[1644361514761,13.2271,113.44,113.37,23.5676556]
[1644361515165,19.2271,113.44,113.37,23.5676556]
[1644361515360,13.2271,113.44,113.37,27.9756556]
[1644361515563,48.24993965,113.46,113.37,27.9756556]
[1644361515764,54.24993965,113.46,113.37,27.9756556]
[1644361516062,58.65793965,113.46,113.37,27.7256556]
[1644361516360,58.65793965,113.46,113.37,27.9756556]
[1644361516361,54.24993965,113.46,113.37,27.9756556]
[1644361516761,13.2261,113.45,113.37,27.9756556]
[1644361518067,19.2261,113.45,113.37,27.9756556]
[1644361518465,13.2261,113.45,113.37,27.9756556]
[1644361518862,13.4761,113.45,113.37,18.2686556]
[1644361519464,19.4761,113.45,113.37,18.0186556]
[1644361519664,13.4761,113.45,113.37,18.0186556]
[1644361520064,13.4761,113.45,113.37,18.2686556]
[1644361520465,13.4761,113.45,113.37,18.0186556]
[1644361520668,4.408,113.44,113.37,18.0186556]
[1644361520866,5.65133965,113.44,113.37,4.7891556]
[1644361521065,13.2309,113.42,113.37,4.7891556]
[1644361521864,13.2309,113.42,113.37,0.3811556]
[1644361522065,19.2309,113.42,113.37,0.3811556]
[1644361522468,23.8899,113.42,113.37,0.3811556]
[1644361522865,19.4809,113.42,113.35,13.6130556]
[1644361523369,42.1095,113.42,113.35,13.6130556]
[1644361523969,42.1095,113.42,113.35,0.3811556]
[1644361524169,13.2328,113.4,113.35,0.3811556]
[1644361526468,13.2328,113.4,113.35,13.6132556]
[1644361528272,13.4828,113.4,113.35,13.6132556]
[1644361530370,0.25,113.4,113.35,13.8632556]
[1644361530770,19.2306,113.41,113.35,13.8632556]
[1644361530973,19.2306,113.41,113.35,18.2722556]
[1644361531274,19.2306,113.41,113.35,18.0222556]
[1644361532094,19.2306,113.41,113.35,13.6132556]
[1644361534397,19.4806,113.41,113.35,0.3811556]
[1644361534995,23.8896,113.41,113.35,0.3811556]
[1644361537298,19.4806,113.41,113.35,0.3811556]
[1644361538997,23.8896,113.41,113.35,0.3811556]
[1644361539201,19.4806,113.41,113.35,13.6126556]
[1644361540100,19.4806,113.41,113.35,13.2315]
[1644361542701,23.8896,113.41,113.36,0.3811556]
[1644361543101,23.6396,113.41,113.36,0.3811556]
[1644361543301,19.2306,113.41,113.36,0.3811556]
[1644361546809,13.2341,113.39,113.35,0.3811556]
[1644361548011,17.6441,113.39,113.35,0.3811556]
[1644361549510,13.2341,113.39,113.35,0.3811556]
[1644361549709,13.2341,113.39,113.34,0.3811556]
[1644361550313,13.2341,113.39,113.34,13.6140556]
[1644361550513,13.2341,113.39,113.34,13.8640556]
[1644361551320,13.4841,113.39,113.34,13.8640556]
[1644361552021,9.91435441,113.39,113.34,13.8640556]
[1644361553418,0.25,113.39,113.34,13.8640556]
[1644361553818,36.3725,113.4,113.34,13.8640556]
[1644361554721,36.6225,113.4,113.34,13.8640556]
[1644361558647,42.6225,113.4,113.34,13.8640556]
[1644361559046,36.6225,113.4,113.34,13.8640556]
[1644361559547,42.6225,113.4,113.34,13.8640556]
[1644361559945,43.86583965,113.4,113.34,13.8640556]
[1644361560350,13.4814,113.4,113.34,13.8640556]
[1644361560749,13.2314,113.4,113.34,13.8640556]
[1644361563256,13.2314,113.4,113.39,0.32171061]
[1644361563452,17.49128121,113.4,113.39,0.32171061]
[1644361563652,17.49128121,113.4,113.39,0.70286621]
[1644361565055,1.24333965,113.41,113.39,1.09856285]
[1644361565255,25.95839256,113.43,113.39,1.09856285]
[1644361565656,31.95839256,113.43,113.39,1.09856285]
[1644361565860,25.95839256,113.43,113.39,1.09856285]
[1644361566258,26.20839256,113.43,113.39,1.09856285]
[1644361566556,32.20839256,113.43,113.39,1.09856285]
[1644361566764,1.24333965,113.42,113.39,1.09856285]
[1644361566961,4.25988121,113.41,113.39,1.09856285]
[1644361567758,4.25988121,113.41,113.39,0.70286621]
[1644361568659,4.50988121,113.41,113.39,0.70286621]
[1644361572565,10.50988121,113.41,113.4,0.0497171]
[1644361572865,4.50988121,113.41,113.39,0.70286621]
[1644361573465,4.50988121,113.41,113.4,0.3811556]
[1644361573966,6.25,113.41,113.4,0.3811556]
[1644361574168,13.4804,113.41,113.4,0.3811556]
[1644361574576,13.2304,113.41,113.4,0.3811556]
[1644361574768,24.6837,113.43,113.4,0.3811556]
[1644361575371,37.9118,113.43,113.4,0.3811556]
[1644361576169,38.1618,113.43,113.41,0.04971271]
[1644361576568,38.1618,113.43,113.42,0.3811556]
[1644361577668,42.42168121,113.43,113.42,0.3811556]
[1644361579570,46.82968121,113.43,113.42,0.3811556]
[1644361580073,52.82968121,113.43,113.4,0.3811556]
[1644361580271,48.42168121,113.43,113.4,0.3811556]
[1644361581272,48.42168121,113.43,113.41,1.05239814]
[1644361581877,48.17168121,113.43,113.4,0.3811556]
[1644361582986,48.17168121,113.43,113.41,1.05239814]
[1644361583171,43.9118,113.43,113.41,1.05239814]
[1644361583377,6.0,113.43,113.42,0.3811556]
[1644361583572,49.69609256,113.46,113.42,0.3811556]
[1644361583772,48.4214,113.46,113.42,0.3811556]
[1644361583973,54.4214,113.46,113.42,0.3811556]
[1644361584371,54.4214,113.46,113.42,13.6052556]
[1644361584771,54.6714,113.46,113.42,13.6052556]
[1644361584973,30.5218,113.46,113.42,13.6052556]
[1644361585371,6.25,113.46,113.42,13.6052556]
[1644361586375,0.25,113.46,113.42,13.6052556]
[1644361586574,6.25,113.46,113.42,13.6052556]
[1644361586775,6.0,113.46,113.42,13.6052556]
[1644361587076,20.49839256,113.47,113.42,13.6052556]
[1644361587276,19.25505291,113.47,113.42,13.6052556]
[1644361587775,20.49839256,113.47,113.42,13.6052556]
[1644361587975,20.46703965,113.47,113.42,13.6052556]
[1644361588375,14.46703965,113.47,113.42,13.6052556]
[1644361588775,13.2237,113.47,113.42,13.6052556]
[1644361588977,13.25505291,113.47,113.42,0.3811556]
[1644361589175,20.49839256,113.47,113.42,0.3811556]